[Event "Early-Titled-Tuesday-Blitz-October-10-2023"]
[Site "Chess.com"]
[Date "2023.10.10"]
[Round "10"]
[White "ChessFighter_2011"]
[Black "Alonmindlin"]
[Result "0-1"]
[WhiteElo "2853"]
[BlackElo "2725"]
[TimeControl "180+1"]
[EndTime "9:52:05 PDT"]
[Termination "Alonmindlin won by checkmate"]

1. c4 {[%clk 0:03:00.9]} 1... e5 {[%clk 0:02:57.4]} 2. Nc3 {[%clk 0:03:00.9]}
2... Nf6 {[%clk 0:02:57.7]} 3. Nf3 {[%clk 0:02:52.6]} 3... Nc6 {[%clk
0:02:57.9]} 4. e3 {[%clk 0:02:52.8]} 4... Bb4 {[%clk 0:02:58]} 5. Qc2 {[%clk
0:02:53]} 5... O-O {[%clk 0:02:55.7]} 6. Nd5 {[%clk 0:02:53.5]} 6... h6 {[%clk
0:02:53.5]} 7. a3 {[%clk 0:02:52.2]} 7... Be7 {[%clk 0:02:52.8]} 8. Nxe7+ {[%clk
0:02:51.7]} 8... Qxe7 {[%clk 0:02:52.6]} 9. d3 {[%clk 0:02:52.2]} 9... a5 {[%clk
0:02:52.1]} 10. b3 {[%clk 0:02:51.4]} 10... d6 {[%clk 0:02:51.6]} 11. Be2 {[%clk
0:02:51.8]} 11... Bf5 {[%clk 0:02:50]} 12. O-O {[%clk 0:02:51.2]} 12... Nd7
{[%clk 0:02:44.6]} 13. Bb2 {[%clk 0:02:49.3]} 13... Nc5 {[%clk 0:02:43.9]} 14.
Qd1 {[%clk 0:02:49.3]} 14... Rab8 {[%clk 0:02:28]} 15. d4 {[%clk 0:02:46.7]}
15... Ne4 {[%clk 0:02:28.2]} 16. d5 {[%clk 0:02:35.8]} 16... Nd8 {[%clk
0:02:27.6]} 17. b4 {[%clk 0:02:36.1]} 17... b6 {[%clk 0:02:26.9]} 18. Rc1 {[%clk
0:02:32.6]} 18... axb4 {[%clk 0:02:25.1]} 19. axb4 {[%clk 0:02:32.5]} 19... Ra8
{[%clk 0:02:26]} 20. Qb3 {[%clk 0:02:25.4]} 20... f6 {[%clk 0:02:22.3]} 21. Ra1
{[%clk 0:02:17.5]} 21... Nf7 {[%clk 0:02:22.3]} 22. Nh4 {[%clk 0:02:11.7]} 22...
Bh7 {[%clk 0:02:14.6]} 23. Nf3 {[%clk 0:01:44.1]} 23... Nfg5 {[%clk 0:02:13.3]}
24. Rxa8 {[%clk 0:01:40]} 24... Rxa8 {[%clk 0:02:12.7]} 25. Ra1 {[%clk
0:01:40.7]} 25... Rxa1+ {[%clk 0:02:12.1]} 26. Bxa1 {[%clk 0:01:41.6]} 26...
Nxf3+ {[%clk 0:02:12.3]} 27. gxf3 {[%clk 0:01:40.9]} 27... Ng5 {[%clk
0:02:10.9]} 28. c5 {[%clk 0:01:39.6]} 28... bxc5 {[%clk 0:02:09.1]} 29. bxc5
{[%clk 0:01:39.8]} 29... Bf5 {[%clk 0:02:06.7]} 30. Bc3 {[%clk 0:01:29.5]} 30...
Qf7 {[%clk 0:02:05.7]} 31. Qb8+ {[%clk 0:01:28.7]} 31... Kh7 {[%clk 0:02:05.6]}
32. cxd6 {[%clk 0:01:28.8]} 32... Bh3 {[%clk 0:02:05.5]} 33. Bd3+ {[%clk
0:01:22.1]} 33... e4 {[%clk 0:02:05.2]} 34. d7 {[%clk 0:00:37.2]} 34... Nxf3+
{[%clk 0:01:58.2]} 35. Kh1 {[%clk 0:00:37.1]} 35... Qg6 {[%clk 0:01:58.6]} 36.
Bxe4 {[%clk 0:00:24.7]} 36... Bg2# {[%clk 0:01:56.8]} 0-1

[Event "Early-Titled-Tuesday-Blitz-October-10-2023"]
[Site "Chess.com"]
[Date "2023.10.10"]
[Round "10"]
[White "tdf98pantani"]
[Black "seopie"]
[Result "0-1"]
[WhiteElo "2650"]
[BlackElo "2794"]
[TimeControl "180+1"]
[EndTime "9:52:05 PDT"]
[Termination "seopie won by resignation"]

1. e4 {[%clk 0:02:56.2]} 1... c5 {[%clk 0:02:58.7]} 2. Nf3 {[%clk 0:02:55.4]}
2... Nc6 {[%clk 0:02:58.8]} 3. d3 {[%clk 0:02:55.3]} 3... g6 {[%clk 0:02:57.8]}
4. g3 {[%clk 0:02:55.5]} 4... Bg7 {[%clk 0:02:57.9]} 5. Bg2 {[%clk 0:02:55.9]}
5... d6 {[%clk 0:02:52.9]} 6. O-O {[%clk 0:02:56.1]} 6... e5 {[%clk 0:02:51.4]}
7. c3 {[%clk 0:02:55]} 7... Nge7 {[%clk 0:02:51.7]} 8. Nh4 {[%clk 0:02:51.2]}
8... O-O {[%clk 0:02:50.8]} 9. f4 {[%clk 0:02:50.9]} 9... exf4 {[%clk
0:02:50.6]} 10. gxf4 {[%clk 0:02:51.3]} 10... d5 {[%clk 0:02:47.4]} 11. Nd2
{[%clk 0:02:46.3]} 11... f5 {[%clk 0:02:42.8]} 12. e5 {[%clk 0:02:44.9]} 12...
Be6 {[%clk 0:02:40.5]} 13. Nhf3 {[%clk 0:02:44.5]} 13... Kh8 {[%clk 0:02:39.8]}
14. h4 {[%clk 0:02:44.1]} 14... h5 {[%clk 0:02:28.7]} 15. Ng5 {[%clk 0:02:43.4]}
15... Qd7 {[%clk 0:02:28.7]} 16. Nxe6 {[%clk 0:02:40.5]} 16... Qxe6 {[%clk
0:02:28.7]} 17. Nf3 {[%clk 0:02:41.1]} 17... Rad8 {[%clk 0:02:20.7]} 18. Ng5
{[%clk 0:02:34.8]} 18... Qd7 {[%clk 0:02:20.6]} 19. Kh2 {[%clk 0:02:30.5]} 19...
Ng8 {[%clk 0:02:19.2]} 20. Be3 {[%clk 0:02:20.3]} 20... d4 {[%clk 0:02:16.8]}
21. cxd4 {[%clk 0:02:20]} 21... cxd4 {[%clk 0:02:17]} 22. Bf2 {[%clk 0:02:19.1]}
22... Nh6 {[%clk 0:02:15]} 23. Qb3 {[%clk 0:02:12.5]} 23... Ng4+ {[%clk
0:02:12.8]} 24. Kg1 {[%clk 0:02:06.9]} 24... Qe7 {[%clk 0:02:08.3]} 25. Rac1
{[%clk 0:02:04.5]} 25... Bh6 {[%clk 0:01:57.9]} 26. Bxc6 {[%clk 0:02:03.4]}
26... Bxg5 {[%clk 0:01:55.5]} 27. hxg5 {[%clk 0:01:49.2]} 27... bxc6 {[%clk
0:01:55.4]} 28. Rxc6 {[%clk 0:01:49.4]} 28... Nxe5 {[%clk 0:01:48.4]} 29. fxe5
{[%clk 0:01:44.8]} 29... Qxg5+ {[%clk 0:01:48.3]} 30. Kh1 {[%clk 0:01:45.4]}
30... Qg4 {[%clk 0:01:47.8]} 31. Be1 {[%clk 0:01:28.6]} 31... f4 {[%clk
0:01:28.1]} 32. Qe6 {[%clk 0:01:25]} 32... Rf5 {[%clk 0:01:25.3]} 33. Qxg6
{[%clk 0:01:01.8]} 33... Qh3+ {[%clk 0:01:24]} 34. Kg1 {[%clk 0:01:01.3]} 34...
Rg8 {[%clk 0:01:24.5]} 35. Rf2 {[%clk 0:00:53.6]} 35... Rg5+ {[%clk 0:01:22.7]}
0-1

[Event "Early-Titled-Tuesday-Blitz-October-10-2023"]
[Site "Chess.com"]
[Date "2023.10.10"]
[Round "10"]
[White "Rutricks"]
[Black "Fan_Of_Chucky"]
[Result "0-1"]
[WhiteElo "2668"]
[BlackElo "2557"]
[TimeControl "180+1"]
[EndTime "9:52:07 PDT"]
[Termination "Fan_Of_Chucky won by resignation"]

1. Nf3 {[%clk 0:02:54]} 1... Nf6 {[%clk 0:02:54.4]} 2. g3 {[%clk 0:02:54.2]}
2... c5 {[%clk 0:02:54.6]} 3. c4 {[%clk 0:02:53.1]} 3... d5 {[%clk 0:02:54.6]}
4. cxd5 {[%clk 0:02:53.1]} 4... Nxd5 {[%clk 0:02:55.5]} 5. Bg2 {[%clk
0:02:53.9]} 5... Nc6 {[%clk 0:02:56]} 6. O-O {[%clk 0:02:54.8]} 6... Nc7 {[%clk
0:02:56.7]} 7. b3 {[%clk 0:02:55.7]} 7... e5 {[%clk 0:02:57.4]} 8. Bb2 {[%clk
0:02:56.6]} 8... f6 {[%clk 0:02:58]} 9. e3 {[%clk 0:02:54.6]} 9... Be7 {[%clk
0:02:55.6]} 10. d4 {[%clk 0:02:55.1]} 10... cxd4 {[%clk 0:02:54.9]} 11. exd4
{[%clk 0:02:56]} 11... exd4 {[%clk 0:02:52.9]} 12. Nxd4 {[%clk 0:02:56.9]} 12...
Nxd4 {[%clk 0:02:53.4]} 13. Bxd4 {[%clk 0:02:57.6]} 13... O-O {[%clk 0:02:52.1]}
14. Re1 {[%clk 0:02:58.1]} 14... Bb4 {[%clk 0:02:46.3]} 15. Nc3 {[%clk
0:02:57.4]} 15... Re8 {[%clk 0:02:17.2]} 16. Rxe8+ {[%clk 0:02:41.2]} 16... Qxe8
{[%clk 0:02:12.8]} 17. Qd3 {[%clk 0:02:41.6]} 17... Be6 {[%clk 0:01:36.8]} 18.
Rd1 {[%clk 0:02:40.6]} 18... Rd8 {[%clk 0:01:36]} 19. Ne4 {[%clk 0:02:41.2]}
19... Nb5 {[%clk 0:01:29]} 20. Qe3 {[%clk 0:02:40.9]} 20... Qd7 {[%clk
0:01:11.7]} 21. a3 {[%clk 0:01:20.7]} 21... Bxa3 {[%clk 0:01:06.3]} 22. b4
{[%clk 0:01:21]} 22... Bxb4 {[%clk 0:00:55.6]} 23. Rb1 {[%clk 0:01:20.9]} 23...
Qxd4 {[%clk 0:00:53]} 24. Nxf6+ {[%clk 0:01:21.3]} 24... Qxf6 {[%clk 0:00:47.7]}
25. Rxb4 {[%clk 0:01:21.1]} 25... Qa1+ {[%clk 0:00:46.2]} 26. Bf1 {[%clk
0:01:21.6]} 26... Bh3 {[%clk 0:00:46.3]} 0-1

[Event "Early-Titled-Tuesday-Blitz-October-10-2023"]
[Site "Chess.com"]
[Date "2023.10.10"]
[Round "10"]
[White "meoluoi91"]
[Black "WindWhistler11"]
[Result "0-1"]
[WhiteElo "2591"]
[BlackElo "2499"]
[TimeControl "180+1"]
[EndTime "9:52:14 PDT"]
[Termination "WindWhistler11 won on time"]

1. d4 {[%clk 0:03:00.9]} 1... e6 {[%clk 0:02:55.4]} 2. c4 {[%clk 0:03:01.1]}
2... Nf6 {[%clk 0:02:55.1]} 3. Nc3 {[%clk 0:03:01.3]} 3... c5 {[%clk 0:02:55.9]}
4. d5 {[%clk 0:02:56.7]} 4... exd5 {[%clk 0:02:56.8]} 5. Nxd5 {[%clk 0:02:55.4]}
5... Nxd5 {[%clk 0:02:51]} 6. Qxd5 {[%clk 0:02:55]} 6... d6 {[%clk 0:02:45.8]}
7. b3 {[%clk 0:02:39]} 7... Qf6 {[%clk 0:02:32.5]} 8. Rb1 {[%clk 0:02:38.4]}
8... Nc6 {[%clk 0:02:29.8]} 9. Bb2 {[%clk 0:02:37.5]} 9... Qg6 {[%clk
0:02:29.4]} 10. Qd1 {[%clk 0:02:20.4]} 10... Bf5 {[%clk 0:02:21.4]} 11. Rc1
{[%clk 0:02:18.8]} 11... Nb4 {[%clk 0:02:22]} 12. Rc3 {[%clk 0:02:17.1]} 12...
O-O-O {[%clk 0:02:08.8]} 13. f3 {[%clk 0:02:12.8]} 13... Nxa2 {[%clk 0:01:55.6]}
14. Re3 {[%clk 0:02:11.2]} 14... Nb4 {[%clk 0:01:48.9]} 15. Kf2 {[%clk 0:02:11]}
15... d5 {[%clk 0:01:34.9]} 16. Qa1 {[%clk 0:02:05]} 16... Nc2 {[%clk
0:01:26.4]} 17. Re5 {[%clk 0:02:02.5]} 17... Nxa1 {[%clk 0:01:25]} 0-1

[Event "Early-Titled-Tuesday-Blitz-October-10-2023"]
[Site "Chess.com"]
[Date "2023.10.10"]
[Round "10"]
[White "Manukyan_Artak"]
[Black "kidagent"]
[Result "1-0"]
[WhiteElo "2473"]
[BlackElo "2275"]
[TimeControl "180+1"]
[EndTime "9:52:15 PDT"]
[Termination "Manukyan_Artak won by resignation"]

1. e4 {[%clk 0:03:00.9]} 1... c6 {[%clk 0:02:59.3]} 2. d4 {[%clk 0:02:58.3]}
2... d5 {[%clk 0:02:59.6]} 3. e5 {[%clk 0:02:58.8]} 3... Bf5 {[%clk 0:02:59]} 4.
c4 {[%clk 0:02:59.1]} 4... e6 {[%clk 0:02:58]} 5. Nc3 {[%clk 0:02:57.4]} 5...
Ne7 {[%clk 0:02:57]} 6. Nf3 {[%clk 0:02:56.4]} 6... Nd7 {[%clk 0:02:47.6]} 7.
Nh4 {[%clk 0:02:55.9]} 7... dxc4 {[%clk 0:02:43.6]} 8. Bxc4 {[%clk 0:02:55]}
8... Nb6 {[%clk 0:02:42.7]} 9. Bb3 {[%clk 0:02:54]} 9... Bg6 {[%clk 0:02:27.6]}
10. Bg5 {[%clk 0:02:50.9]} 10... Qd7 {[%clk 0:02:23.9]} 11. O-O {[%clk
0:02:48.2]} 11... O-O-O {[%clk 0:02:21.5]} 12. Nxg6 {[%clk 0:02:43.1]} 12...
hxg6 {[%clk 0:02:18.7]} 13. Be3 {[%clk 0:02:42.7]} 13... Nf5 {[%clk 0:02:16.6]}
14. Qf3 {[%clk 0:02:26.6]} 14... Nxd4 {[%clk 0:02:13.4]} 15. Bxd4 {[%clk
0:02:24.6]} 15... Qxd4 {[%clk 0:02:11.8]} 16. Qxf7 {[%clk 0:02:25]} 16... Bc5
{[%clk 0:02:08.7]} 17. Qxe6+ {[%clk 0:02:17.8]} 17... Kb8 {[%clk 0:02:05.4]} 18.
Rad1 {[%clk 0:02:15.3]} 18... Qh4 {[%clk 0:01:59.6]} 19. Rxd8+ {[%clk
0:02:14.2]} 19... Rxd8 {[%clk 0:02:00.5]} 20. Qxg6 {[%clk 0:02:05.1]} 20... Rh8
{[%clk 0:01:49.1]} 21. Qg3 {[%clk 0:02:04.1]} 21... Qh6 {[%clk 0:01:37.3]} 22.
e6+ {[%clk 0:02:00.3]} 22... Ka8 {[%clk 0:01:38]} 23. Ne4 {[%clk 0:01:58.3]}
23... Bd4 {[%clk 0:01:35.8]} 24. Rd1 {[%clk 0:01:53.3]} 24... Bxb2 {[%clk
0:01:33.7]} 25. e7 {[%clk 0:01:51]} 25... Nc8 {[%clk 0:01:29.6]} 26. Rd8 {[%clk
0:01:13.3]} 26... c5 {[%clk 0:00:54.1]} 27. Qc7 {[%clk 0:01:00.1]} 1-0

[Event "Early-Titled-Tuesday-Blitz-October-10-2023"]
[Site "Chess.com"]
[Date "2023.10.10"]
[Round "10"]
[White "Herman-NY"]
[Black "Witik"]
[Result "0-1"]
[WhiteElo "2540"]
[BlackElo "2690"]
[TimeControl "180+1"]
[EndTime "9:52:22 PDT"]
[Termination "Witik won on time"]

1. e4 {[%clk 0:03:00.9]} 1... c6 {[%clk 0:03:00]} 2. d4 {[%clk 0:03:01]} 2... d5
{[%clk 0:03:00.6]} 3. e5 {[%clk 0:03:01.6]} 3... Bf5 {[%clk 0:03:00.5]} 4. h4
{[%clk 0:03:02]} 4... Qb6 {[%clk 0:03:00.5]} 5. a4 {[%clk 0:03:01.5]} 5... h6
{[%clk 0:02:59.6]} 6. a5 {[%clk 0:03:01.7]} 6... Qc7 {[%clk 0:03:00]} 7. Bd3
{[%clk 0:02:52.1]} 7... Bxd3 {[%clk 0:02:57.2]} 8. Qxd3 {[%clk 0:02:53]} 8... e6
{[%clk 0:02:57.6]} 9. c4 {[%clk 0:01:48.9]} 9... Bb4+ {[%clk 0:02:14.5]} 10. Bd2
{[%clk 0:01:48.4]} 10... dxc4 {[%clk 0:02:14.1]} 11. Qxc4 {[%clk 0:01:47.8]}
11... Bxd2+ {[%clk 0:02:12.8]} 12. Nxd2 {[%clk 0:01:48.7]} 12... Ne7 {[%clk
0:02:13.2]} 13. Ne4 {[%clk 0:01:37.9]} 13... O-O {[%clk 0:02:13]} 14. Nf3 {[%clk
0:01:25.5]} 14... Rd8 {[%clk 0:02:12.8]} 15. h5 {[%clk 0:01:19]} 15... Na6
{[%clk 0:02:11.2]} 16. O-O {[%clk 0:00:56]} 16... Nd5 {[%clk 0:02:10.8]} 17. g3
{[%clk 0:00:48.1]} 17... Qe7 {[%clk 0:02:08.8]} 18. Nd6 {[%clk 0:00:34.1]} 18...
Rxd6 {[%clk 0:02:05.8]} 19. exd6 {[%clk 0:00:35]} 19... Qxd6 {[%clk 0:02:06.7]}
20. Kg2 {[%clk 0:00:22.4]} 20... Nac7 {[%clk 0:02:03]} 21. Rae1 {[%clk
0:00:16.9]} 21... Nf6 {[%clk 0:02:00.2]} 22. Re5 {[%clk 0:00:15.8]} 22... Rd8
{[%clk 0:01:59]} 23. Rh1 {[%clk 0:00:10.2]} 23... Nb5 {[%clk 0:01:56.3]} 24. Rh4
{[%clk 0:00:09.1]} 24... a6 {[%clk 0:01:53.8]} 25. Rf4 {[%clk 0:00:06.5]} 25...
Nd5 {[%clk 0:01:53.1]} 26. Rg4 {[%clk 0:00:06.1]} 26... Nf6 {[%clk 0:01:53.6]}
27. Rf4 {[%clk 0:00:06.2]} 27... Nc7 {[%clk 0:01:53.6]} 28. Rh4 {[%clk
0:00:05.1]} 28... Ncd5 {[%clk 0:01:54.1]} 29. Qc1 {[%clk 0:00:02.9]} 29... Nd7
{[%clk 0:01:53.5]} 30. Ree4 {[%clk 0:00:02.5]} 30... N5f6 {[%clk 0:01:53.9]} 31.
Re2 {[%clk 0:00:02.3]} 31... Qd5 {[%clk 0:01:53.6]} 32. Qe3 {[%clk 0:00:01.1]}
32... Nxh5 {[%clk 0:01:50.8]} 0-1

[Event "Early-Titled-Tuesday-Blitz-October-10-2023"]
[Site "Chess.com"]
[Date "2023.10.10"]
[Round "10"]
[White "JoliyRoger"]
[Black "inagreV"]
[Result "0-1"]
[WhiteElo "2459"]
[BlackElo "2314"]
[TimeControl "180+1"]
[EndTime "9:52:37 PDT"]
[Termination "inagreV won on time"]

1. Nf3 {[%clk 0:01:41]} 1... d5 {[%clk 0:02:58.4]} 2. c4 {[%clk 0:01:40.4]} 2...
d4 {[%clk 0:02:57.3]} 3. e3 {[%clk 0:01:40.3]} 3... Nc6 {[%clk 0:02:57.2]} 4. d3
{[%clk 0:01:39.1]} 4... e5 {[%clk 0:02:56.5]} 5. exd4 {[%clk 0:01:39.5]} 5...
exd4 {[%clk 0:02:54.9]} 6. Be2 {[%clk 0:01:40]} 6... Bb4+ {[%clk 0:02:52.6]} 7.
Nbd2 {[%clk 0:01:36.8]} 7... a5 {[%clk 0:02:51.6]} 8. O-O {[%clk 0:01:37.2]}
8... Nf6 {[%clk 0:02:51]} 9. a3 {[%clk 0:01:36.8]} 9... Bd6 {[%clk 0:02:44.9]}
10. Nb3 {[%clk 0:01:35.1]} 10... a4 {[%clk 0:02:42.6]} 11. Nbd2 {[%clk
0:00:41.4]} 11... O-O {[%clk 0:02:41.6]} 12. Re1 {[%clk 0:00:41.9]} 12... Re8
{[%clk 0:02:40.3]} 13. Nf1 {[%clk 0:00:42.2]} 13... h6 {[%clk 0:02:37.7]} 14.
Ng3 {[%clk 0:00:41.8]} 14... Ne7 {[%clk 0:02:25.6]} 15. Bd2 {[%clk 0:00:38.5]}
15... Ng6 {[%clk 0:02:23.3]} 16. b4 {[%clk 0:00:31.5]} 16... axb3 {[%clk
0:02:21.8]} 17. Qxb3 {[%clk 0:00:32.1]} 17... b6 {[%clk 0:02:08.1]} 18. a4
{[%clk 0:00:30]} 18... Bf4 {[%clk 0:01:24.5]} 19. Bf1 {[%clk 0:00:20.5]} 19...
Bxd2 {[%clk 0:01:17.9]} 20. Nxd2 {[%clk 0:00:21.2]} 20... Bd7 {[%clk 0:01:12.3]}
21. Qb4 {[%clk 0:00:15.4]} 21... Rxe1 {[%clk 0:01:11.2]} 22. Qb1 {[%clk
0:00:15.3]} 22... Rxb1 {[%clk 0:01:10.6]} 0-1

[Event "Early-Titled-Tuesday-Blitz-October-10-2023"]
[Site "Chess.com"]
[Date "2023.10.10"]
[Round "10"]
[White "KorolDimitriy75"]
[Black "almaguerjm"]
[Result "1-0"]
[WhiteElo "2413"]
[BlackElo "2496"]
[TimeControl "180+1"]
[EndTime "9:52:40 PDT"]
[Termination "KorolDimitriy75 won by checkmate"]

1. d4 {[%clk 0:03:00.9]} 1... Nf6 {[%clk 0:02:59.8]} 2. c4 {[%clk 0:03:01.1]}
2... e6 {[%clk 0:02:59.6]} 3. Nc3 {[%clk 0:03:01.4]} 3... Bb4 {[%clk 0:02:59.3]}
4. Qc2 {[%clk 0:03:01.7]} 4... b5 {[%clk 0:02:55.1]} 5. cxb5 {[%clk 0:02:57.9]}
5... Bb7 {[%clk 0:02:55.6]} 6. e3 {[%clk 0:02:46]} 6... O-O {[%clk 0:02:50.2]}
7. Nf3 {[%clk 0:02:45.3]} 7... Ne4 {[%clk 0:02:49.1]} 8. Bd3 {[%clk 0:02:42.6]}
8... f5 {[%clk 0:02:49.3]} 9. O-O {[%clk 0:02:38.6]} 9... d5 {[%clk 0:02:47.8]}
10. Ne5 {[%clk 0:02:32.4]} 10... Nd7 {[%clk 0:02:43]} 11. f4 {[%clk 0:01:53.9]}
11... Ndf6 {[%clk 0:02:04.5]} 12. Bd2 {[%clk 0:01:51.1]} 12... Nxd2 {[%clk
0:02:03.1]} 13. Qxd2 {[%clk 0:01:50.8]} 13... Ne4 {[%clk 0:01:57.8]} 14. Qc2
{[%clk 0:01:07.4]} 14... Rf6 {[%clk 0:01:34.1]} 15. Nxe4 {[%clk 0:00:53.3]}
15... fxe4 {[%clk 0:01:30.7]} 16. Be2 {[%clk 0:00:52]} 16... g5 {[%clk
0:01:24.6]} 17. fxg5 {[%clk 0:00:27.8]} 17... Rxf1+ {[%clk 0:01:24.4]} 18. Rxf1
{[%clk 0:00:27.4]} 18... Qxg5 {[%clk 0:01:22.7]} 19. Qxc7 {[%clk 0:00:19.5]}
19... Qxe3+ {[%clk 0:01:07.9]} 20. Kh1 {[%clk 0:00:19]} 20... Qxe2 {[%clk
0:00:55.3]} 21. Qf7+ {[%clk 0:00:17.3]} 21... Kh8 {[%clk 0:00:55.2]} 22. Qf6+
{[%clk 0:00:16.6]} 22... Kg8 {[%clk 0:00:55.6]} 23. Qg5+ {[%clk 0:00:14.6]}
23... Kh8 {[%clk 0:00:55.9]} 24. Nf7# {[%clk 0:00:14.6]} 1-0

[Event "Early-Titled-Tuesday-Blitz-October-10-2023"]
[Site "Chess.com"]
[Date "2023.10.10"]
[Round "10"]
[White "soumeow"]
[Black "santosalberto1987"]
[Result "0-1"]
[WhiteElo "2288"]
[BlackElo "2456"]
[TimeControl "180+1"]
[EndTime "9:52:49 PDT"]
[Termination "santosalberto1987 won on time"]

1. e4 {[%clk 0:03:00.9]} 1... e6 {[%clk 0:02:59.2]} 2. d4 {[%clk 0:02:59.9]}
2... d5 {[%clk 0:02:59.5]} 3. Nc3 {[%clk 0:03:00.5]} 3... Nf6 {[%clk 0:02:59.6]}
4. e5 {[%clk 0:03:00.6]} 4... Nfd7 {[%clk 0:02:59.8]} 5. f4 {[%clk 0:03:01.2]}
5... c5 {[%clk 0:03:00.4]} 6. Nf3 {[%clk 0:03:01.9]} 6... Nc6 {[%clk 0:03:01]}
7. Be3 {[%clk 0:03:02.2]} 7... Qb6 {[%clk 0:03:01.5]} 8. a3 {[%clk 0:02:53]}
8... c4 {[%clk 0:02:58.1]} 9. Rb1 {[%clk 0:02:29.1]} 9... Be7 {[%clk 0:02:58]}
10. Be2 {[%clk 0:02:25.9]} 10... Qa5 {[%clk 0:02:54.8]} 11. O-O {[%clk
0:02:21.1]} 11... b5 {[%clk 0:02:54.9]} 12. Ra1 {[%clk 0:01:59.3]} 12... f5
{[%clk 0:02:48.6]} 13. exf6 {[%clk 0:01:56.5]} 13... Nxf6 {[%clk 0:02:48.7]} 14.
Ne5 {[%clk 0:01:50.3]} 14... Bd7 {[%clk 0:02:48.9]} 15. Bh5+ {[%clk 0:01:46.6]}
15... g6 {[%clk 0:02:47.4]} 16. Bf3 {[%clk 0:01:35.5]} 16... a6 {[%clk
0:02:36.1]} 17. Re1 {[%clk 0:01:29]} 17... O-O {[%clk 0:02:34.6]} 18. Nxd7
{[%clk 0:01:27.3]} 18... Nxd7 {[%clk 0:02:34.6]} 19. Nxd5 {[%clk 0:01:27.2]}
19... Rac8 {[%clk 0:02:24.3]} 20. Nxe7+ {[%clk 0:01:20.7]} 20... Nxe7 {[%clk
0:02:25.2]} 21. Bf2 {[%clk 0:01:04.5]} 21... Nd5 {[%clk 0:02:24.8]} 22. Rxe6
{[%clk 0:01:02.4]} 22... Nxf4 {[%clk 0:02:24.4]} 23. Re7 {[%clk 0:00:53.8]}
23... Nf6 {[%clk 0:02:22.1]} 24. d5 {[%clk 0:00:45.9]} 24... Rcd8 {[%clk
0:02:18.3]} 25. d6 {[%clk 0:00:45.2]} 25... Rf7 {[%clk 0:02:06.6]} 26. Rxf7
{[%clk 0:00:38]} 26... Kxf7 {[%clk 0:02:07.5]} 27. Qd4 {[%clk 0:00:19.6]} 27...
Ne6 {[%clk 0:02:03.2]} 28. Qe5 {[%clk 0:00:18.8]} 28... Qd2 {[%clk 0:01:58]} 29.
Rd1 {[%clk 0:00:16.3]} 29... Qxc2 {[%clk 0:01:55.9]} 30. Bh4 {[%clk 0:00:13.4]}
30... Qf5 {[%clk 0:01:55.5]} 31. Qe3 {[%clk 0:00:08.1]} 31... g5 {[%clk
0:01:46.6]} 32. Bg3 {[%clk 0:00:07.5]} 32... g4 {[%clk 0:01:46.5]} 33. Bb7
{[%clk 0:00:05.5]} 33... Qc5 {[%clk 0:01:43.3]} 34. Qxc5 {[%clk 0:00:05.5]}
34... Nxc5 {[%clk 0:01:44.2]} 35. Bc6 {[%clk 0:00:04.8]} 35... Nfe4 {[%clk
0:01:43.8]} 36. Rf1+ {[%clk 0:00:04.4]} 36... Ke6 {[%clk 0:01:42.9]} 37. Re1
{[%clk 0:00:04.3]} 37... Kf5 {[%clk 0:01:43.1]} 0-1

[Event "Early-Titled-Tuesday-Blitz-October-10-2023"]
[Site "Chess.com"]
[Date "2023.10.10"]
[Round "10"]
[White "abelmat"]
[Black "Ariadna_Atreides"]
[Result "0-1"]
[WhiteElo "1951"]
[BlackElo "2198"]
[TimeControl "180+1"]
[EndTime "9:52:52 PDT"]
[Termination "Ariadna_Atreides won by checkmate"]

1. d4 {[%clk 0:03:00.9]} 1... Nf6 {[%clk 0:02:59.5]} 2. c4 {[%clk 0:03:01.8]}
2... e6 {[%clk 0:03:00.1]} 3. Nf3 {[%clk 0:02:59.7]} 3... Bb4+ {[%clk
0:03:00.4]} 4. Nc3 {[%clk 0:02:58.3]} 4... b6 {[%clk 0:02:53.8]} 5. Qc2 {[%clk
0:02:55.1]} 5... Bb7 {[%clk 0:02:53]} 6. a3 {[%clk 0:02:55.1]} 6... Bxc3+ {[%clk
0:02:52.4]} 7. Qxc3 {[%clk 0:02:55.3]} 7... a5 {[%clk 0:02:51.6]} 8. g3 {[%clk
0:02:52.5]} 8... O-O {[%clk 0:02:50.1]} 9. Bg2 {[%clk 0:02:53]} 9... d6 {[%clk
0:02:50.7]} 10. O-O {[%clk 0:02:52.9]} 10... Nbd7 {[%clk 0:02:50.3]} 11. Bf4
{[%clk 0:02:51.7]} 11... Qe7 {[%clk 0:02:49.7]} 12. Rfe1 {[%clk 0:02:50.7]}
12... Ne4 {[%clk 0:02:48.9]} 13. Qc2 {[%clk 0:02:49.2]} 13... f5 {[%clk
0:02:47.7]} 14. h4 {[%clk 0:02:45.3]} 14... Rab8 {[%clk 0:02:46.7]} 15. b4
{[%clk 0:02:41.9]} 15... axb4 {[%clk 0:02:38.8]} 16. axb4 {[%clk 0:02:41.4]}
16... e5 {[%clk 0:02:39]} 17. Bg5 {[%clk 0:02:20.6]} 17... Nxg5 {[%clk
0:02:37.7]} 18. Nxg5 {[%clk 0:02:19.9]} 18... Bxg2 {[%clk 0:02:35.5]} 19. Kxg2
{[%clk 0:02:19.9]} 19... h6 {[%clk 0:02:34.5]} 20. Nh3 {[%clk 0:02:09.3]} 20...
f4 {[%clk 0:02:30.1]} 21. Ra7 {[%clk 0:01:45.4]} 21... Rbc8 {[%clk 0:02:25.7]}
22. Qe4 {[%clk 0:01:39.1]} 22... Qf6 {[%clk 0:02:18.7]} 23. f3 {[%clk
0:01:24.3]} 23... fxg3 {[%clk 0:02:13.7]} 24. Kxg3 {[%clk 0:01:18.7]} 24... exd4
{[%clk 0:02:13.7]} 25. Nf4 {[%clk 0:01:00.3]} 25... Rce8 {[%clk 0:02:10.7]} 26.
Qd5+ {[%clk 0:00:44]} 26... Kh8 {[%clk 0:01:55.8]} 27. Nh3 {[%clk 0:00:20.3]}
27... d3 {[%clk 0:01:33.6]} 28. Rxc7 {[%clk 0:00:15.9]} 28... Ne5 {[%clk
0:01:27.7]} 29. exd3 {[%clk 0:00:10.7]} 29... Qg6+ {[%clk 0:01:24.1]} 30. Kf2
{[%clk 0:00:09.8]} 30... Nxd3+ {[%clk 0:01:18.5]} 31. Kf1 {[%clk 0:00:07.7]}
31... Rxe1# {[%clk 0:01:17.3]} 0-1